bitfinex/quotes_ETHUSD_20250114
["timestamp","ask_amount","ask_price","bid_price","bid_amount"]
[1736861983471,3.55,3213.5,3212.6,0.0075]
[1736861983887,3.0,3213.6,3212.6,0.0075]
[1736861984187,3.55,3213.2,3212.6,0.0075]
[1736861984395,3.11178,3213.6,3212.6,0.0075]
[1736861984575,0.55,3213.5,3212.8,0.0075]
[1736861985881,0.37297479,3213.7,3212.8,0.0075]
[1736861986262,0.61816787,3213.9,3212.8,0.03862472]
[1736861986463,0.61816787,3213.9,3212.8,0.03862163]
[1736861986860,3.11106,3214.4,3212.8,0.03862163]
[1736861987061,2.23425504,3214.7,3213.0,0.0075]
[1736861987272,2.23425504,3214.7,3213.4,0.0075]
[1736861987591,3.39741987,3214.6,3213.4,0.0075]
[1736861987885,0.28656987,3214.6,3213.4,0.03861617]
[1736861988192,2.23425504,3214.7,3213.6,0.0075]
[1736861988687,2.23425504,3214.7,3213.8,0.0075]
[1736861988985,2.23425504,3214.7,3214.2,0.0075]
[1736861989191,2.23425504,3214.7,3214.4,0.0075]
[1736861990090,1.28535504,3214.7,3214.6,0.9437]
[1736861990297,0.33645504,3214.7,3214.6,0.9437]
[1736861991192,0.318,3217.4,3214.1,0.03110206]
[1736861991193,0.8992,3217.0,3214.7,0.9437]
[1736861991508,0.6314437,3216.6,3215.3,0.0075]
[1736861991703,0.6314437,3216.6,3215.3,0.03859581]
[1736861992472,1.314407,3217.4,3215.4,0.9362]
[1736861992777,0.8992,3217.4,3215.9,0.0075]
[1736861992970,0.8992,3217.4,3215.9,0.0385899]
[1736861993384,0.62505061,3217.2,3215.9,0.0385899]
[1736861993603,0.62505061,3217.2,3215.9,0.0075]
[1736861993808,0.62505061,3217.2,3216.1,0.0075]
[1736861994007,0.62505061,3217.2,3216.1,0.03858778]
[1736861995073,3.10805,3217.5,3216.3,0.0075]
[1736861995278,0.415207,3217.4,3216.3,0.0075]
[1736861995478,1.16414603,3217.3,3216.3,0.0075]
[1736861995899,0.55,3217.1,3216.3,0.0075]
[1736861996479,3.55,3216.9,3216.3,0.0075]
[1736861996679,3.10804,3217.5,3216.3,0.0075]
[1736861996680,0.665848,3216.8,3216.3,0.0075]
[1736861996991,3.55,3217.4,3216.3,0.0075]
[1736861997314,0.55,3217.2,3216.3,0.0075]
[1736861998212,3.65819,3217.3,3216.3,0.0075]
[1736861998392,0.55,3217.1,3216.3,0.0075]
[1736861998593,3.65838,3217.1,3216.3,0.0075]
[1736861998798,0.55,3216.9,3216.3,0.0075]
[1736861999303,0.55,3216.7,3216.3,0.0075]
[1736861999620,0.55,3216.7,3214.5,3.14192461]
[1736861999621,3.55,3216.5,3214.5,0.97479343]
[1736862000012,3.55,3216.5,3214.6,0.9306]
[1736862000320,3.55,3216.5,3215.0,0.0075]
[1736862000543,0.61701238,3216.8,3215.2,0.0075]
[1736862000823,0.61701238,3216.8,3215.3,0.9306]
[1736862000989,0.55,3216.7,3215.5,0.0075]
[1736862001187,0.665838,3217.0,3215.7,0.0075]
[1736862001387,0.63586983,3217.1,3215.7,0.03859225]
[1736862001583,0.63586983,3217.1,3215.9,0.0075]
[1736862001783,0.9206,3216.9,3215.9,0.0075]
[1736862001983,0.55,3216.8,3215.9,0.0075]
[1736862002209,0.55,3216.6,3215.9,0.0075]
[1736862002429,4.02872,3217.4,3215.9,0.03859335]
[1736862002609,3.73844445,3217.1,3215.9,0.0075]
[1736862002814,3.55,3217.0,3215.9,0.0075]
[1736862003119,3.55,3216.8,3215.9,0.0075]
[1736862003321,0.63001445,3217.1,3215.9,0.03859415]
[1736862003823,0.9930159,3217.1,3215.9,0.03859415]
[1736862004022,0.63001445,3217.1,3215.9,0.03859415]
[1736862004224,0.63001445,3217.1,3216.1,0.9231]
[1736862004385,0.001,3218.0,3216.6,0.0075]
[1736862004587,0.62359844,3217.3,3216.7,0.9231]
[1736862004827,0.001,3218.0,3216.9,0.9231]
[1736862004999,0.001,3218.0,3217.0,0.03107928]
[1736862005199,0.001,3218.0,3217.1,0.9231]
[1736862006118,0.001,3218.0,3217.2,0.03107801]
[1736862006687,0.001,3218.0,3217.1,0.9231]
[1736862006906,0.551,3218.0,3217.1,0.9231]
[1736862007106,0.55,3217.8,3217.1,0.9231]
[1736862007301,0.55,3217.9,3217.1,0.9231]
[1736862007759,0.001,3218.0,3217.1,0.9231]
[1736862007934,3.551,3218.0,3217.1,0.9231]
[1736862008107,3.55,3217.8,3217.1,0.9231]
[1736862008309,0.55,3217.6,3217.1,0.9231]
[1736862008505,3.1079,3217.6,3217.1,0.9231]
[1736862008706,0.55,3217.5,3216.7,0.9385]
[1736862008904,0.55,3217.7,3216.7,0.9385]
[1736862009109,0.55,3217.7,3216.8,0.03108728]
[1736862009329,3.55,3217.8,3216.7,0.9385]
[1736862009544,0.55,3217.6,3216.8,0.03108517]
[1736862009709,0.001,3218.0,3216.8,0.03108237]
[1736862010212,0.001,3218.0,3216.9,0.9385]
[1736862010839,0.55,3217.6,3216.9,0.9385]
[1736862011212,0.001,3218.0,3217.0,0.03108656]
[1736862011614,0.001,3218.0,3217.1,0.9385]
[1736862012031,0.001,3218.0,3217.2,0.0310789]
[1736862012213,0.001,3218.0,3217.3,0.9385]
[1736862012410,0.001,3218.0,3217.5,0.9385]
[1736862012616,0.001,3218.0,3217.6,0.0310734]
[1736862012923,0.001,3218.0,3217.5,0.9385]
[1736862015136,0.001,3218.0,3217.6,0.03107852]
[1736862015426,0.001,3218.0,3217.5,0.9385]
[1736862015754,0.001,3218.0,3215.9,1.495376]
[1736862015755,3.551,3218.0,3217.1,0.9444]
[1736862016057,0.55,3217.8,3216.1,0.9444]
[1736862016364,3.55,3217.3,3216.1,0.9444]
[1736862016518,0.55,3217.1,3216.1,0.9444]
[1736862017331,0.869,3217.5,3216.1,0.9444]
[1736862017523,0.55,3217.2,3216.1,0.9444]
[1736862017725,0.355,3217.1,3216.1,0.9444]
[1736862017924,3.55,3216.8,3216.1,0.9444]
[1736862018736,3.55,3216.6,3214.4,3.94984912]
[1736862018946,0.55,3216.0,3214.6,0.9444]
[1736862019459,3.55,3215.8,3214.6,0.9444]
[1736862019658,0.55,3215.6,3214.6,0.9444]
[1736862019861,3.11012,3215.3,3214.6,0.9444]
[1736862020047,3.11012,3215.3,3214.5,0.28704049]
[1736862020048,0.55,3215.0,3214.5,0.28704049]
[1736862020250,3.55,3214.8,3214.5,0.28704049]
[1736862020749,3.55,3214.6,3214.5,0.28704049]
[1736862021068,0.55,3214.4,3213.7,0.9444]
[1736862021360,3.666071,3214.6,3213.7,0.9444]
[1736862021928,0.55,3214.5,3213.8,0.28754936]
[1736862022335,3.11051,3214.9,3213.8,0.28754936]
[1736862022757,3.55,3214.8,3213.8,0.28754936]
[1736862022960,4.302951,3214.8,3213.8,0.28754936]
[1736862023163,4.302951,3214.8,3213.9,0.28754936]
[1736862023994,3.55,3214.6,3213.9,0.28754936]
[1736862024274,3.55,3214.6,3214.0,0.28754936]
[1736862024848,3.0,3215.1,3214.0,0.28754936]
[1736862025047,4.26603,3215.4,3214.0,0.28754936]
[1736862025254,0.55,3214.8,3214.1,0.28754936]
[1736862025942,0.54625595,3214.8,3214.1,0.28754936]
[1736862026365,3.0,3214.4,3214.1,0.28754936]
[1736862026570,3.0,3214.4,3214.2,0.28754936]
[1736862026869,3.0,3214.7,3214.2,0.28754936]
[1736862027455,3.1108,3214.6,3214.3,0.28754936]
[1736862027654,3.0,3214.5,3214.3,0.28754936]
[1736862028269,0.55,3214.4,3214.3,0.28754936]
[1736862028452,3.0,3214.8,3213.8,0.28754936]
[1736862028652,3.97903,3215.4,3213.9,0.03111374]
[1736862028844,0.63576967,3215.2,3214.0,1.23194936]
[1736862029040,3.94984912,3215.7,3214.1,0.03110917]
[1736862029267,3.10983,3215.6,3214.1,0.03110917]
[1736862029471,3.10983,3215.6,3214.0,1.23194936]
[1736862029472,3.0,3215.5,3214.0,1.23194936]
[1736862029673,3.0,3215.5,3214.1,0.03110718]
[1736862029875,3.0,3215.5,3214.1,0.28754936]
[1736862030100,0.55,3215.2,3214.1,0.28754936]
[1736862030658,0.55,3215.4,3214.1,0.28754936]
[1736862030865,3.62423629,3215.5,3214.1,0.28754936]
[1736862031065,3.55,3215.0,3214.2,0.28754936]
[1736862032177,0.06863835,3214.9,3214.3,0.28754936]
[1736862032554,3.55,3215.1,3214.3,0.28754936]
[1736862032755,3.55,3214.7,3214.3,0.28754936]
[1736862032978,3.0,3215.1,3214.3,0.28754936]
[1736862033154,3.0,3215.1,3214.0,0.9444]
[1736862033155,0.06661633,3214.6,3214.4,0.28754936]
[1736862033357,4.34204538,3215.7,3214.4,0.28754936]
[1736862033652,3.11018,3215.3,3214.4,0.28754936]
[1736862033865,0.55,3214.9,3214.4,0.28754936]
[1736862034070,0.06649152,3214.8,3214.4,0.28754936]
[1736862034266,0.55,3214.7,3214.5,0.28754936]
[1736862034466,0.06656078,3214.6,3214.5,0.28754936]
[1736862034666,3.61656078,3214.6,3214.5,0.28754936]
[1736862034868,4.28929186,3214.6,3214.5,0.28754936]
[1736862035086,0.55,3214.5,3214.1,0.28754936]
[1736862035591,0.55,3214.3,3214.1,0.28754936]
[1736862035879,0.06624647,3214.2,3214.1,0.28754936]
[1736862036081,0.06624647,3214.2,3213.6,0.8861]
[1736862036082,0.55,3214.1,3213.6,0.8861]
[1736862036386,0.55,3213.9,3213.6,0.8861]
[1736862036810,3.67273108,3214.6,3213.6,0.8861]
[1736862036811,0.55,3213.7,3213.6,0.8861]
[1736862037170,0.61561754,3213.7,3213.6,0.8861]
[1736862037759,0.61561754,3213.7,3213.2,0.8861]
[1736862038370,0.61561754,3213.7,3213.3,0.28753768]
[1736862039018,3.11177,3213.6,3213.3,0.28753768]
[1736862039219,0.55,3213.4,3213.3,0.28753768]
[1736862039499,0.55,3213.4,3212.7,0.8861]
[1736862039500,0.06538761,3213.4,3212.7,0.8861]
[1736862039858,0.55,3213.6,3212.7,0.8861]
[1736862040059,0.06546426,3213.5,3212.7,0.8861]
[1736862040490,0.55,3213.9,3212.8,0.28753086]
[1736862040698,0.06484217,3213.8,3212.8,0.28753086]
[1736862040883,0.61525418,3214.0,3213.0,0.8861]
[1736862041083,0.06264633,3213.9,3213.2,0.8861]
[1736862041283,3.11047,3215.0,3213.3,0.91721304]
[1736862041504,0.61874499,3214.8,3213.3,0.91721304]
[1736862041695,0.06095847,3214.7,3213.4,0.8861]
[1736862041996,0.55,3214.6,3213.4,1.17363086]
[1736862042197,0.06103982,3214.6,3213.5,0.91721018]
[1736862042398,0.06103982,3214.6,3213.5,0.8861]
[1736862042599,0.62523967,3215.0,3213.5,0.8861]
[1736862042804,0.55,3214.4,3213.5,0.8861]
[1736862042977,0.55,3214.9,3213.6,0.28753086]
[1736862043178,0.55,3214.2,3213.6,0.28753086]
[1736862043506,0.06064208,3214.1,3213.6,0.28753086]
[1736862043673,0.55,3214.9,3213.6,0.31864344]
[1736862043873,0.55,3214.7,3213.6,0.31864344]
[1736862044103,0.55,3214.5,3213.6,0.31864344]
[1736862044303,0.55,3214.3,3213.7,0.28753086]
[1736862044504,0.55,3214.1,3213.7,0.28753086]
[1736862044817,0.55,3213.9,3213.7,0.28753086]
[1736862045021,0.55,3213.9,3213.5,0.8861]
[1736862045022,0.55,3213.9,3213.8,0.28753086]
[1736862045321,0.55,3214.3,3213.8,0.28753086]
[1736862045485,0.55,3214.1,3213.8,0.28753086]
[1736862046017,0.55,3214.1,3213.9,0.28753086]
[1736862047288,0.06096935,3214.0,3213.9,0.28753086]
[1736862047494,3.11054,3214.9,3213.5,0.8861]
[1736862047824,3.06158203,3214.8,3213.5,0.8861]
[1736862048024,0.55,3214.6,3213.5,0.8861]
[1736862048372,0.55,3214.4,3213.5,0.8861]
[1736862048575,0.55,3214.4,3213.6,0.28729364]
[1736862048817,0.55,3214.2,3213.6,0.28729364]
[1736862049195,0.55,3214.0,3213.6,0.28729364]
[1736862049409,0.55,3214.0,3213.7,0.28729364]
[1736862049613,0.55,3213.8,3213.7,0.28729364]
[1736862049910,0.61073646,3213.8,3213.7,0.28729364]
[1736862050311,1.28295711,3213.8,3213.7,0.28729364]
[1736862050703,5.9574773,3213.8,3212.5,2.0]
[1736862050915,3.0,3213.2,3212.5,2.0]
[1736862051083,0.55,3212.7,3212.5,2.0]
[1736862051280,6.72239202,3212.6,3212.5,2.0]
[1736862051609,8.06088522,3212.6,3212.5,2.0]
[1736862051784,8.86600541,3212.6,3212.5,2.0]
[1736862052109,10.35921125,3212.6,3212.5,1.82946264]
[1736862052322,3.11368,3211.7,3210.4,0.9489]
[1736862052526,0.55,3211.5,3210.4,0.9489]
[1736862052933,0.0583592,3211.4,3210.4,0.9489]
[1736862053232,0.55,3211.3,3210.4,0.9489]
[1736862053733,0.55,3211.1,3210.4,0.9489]
[1736862054033,0.55,3211.1,3209.3,0.9489]
[1736862054178,0.05838406,3211.0,3209.4,0.98004831]
[1736862054378,3.11412,3211.2,3209.4,0.98004831]
[1736862054379,0.55,3211.1,3209.4,0.98004831]
[1736862054626,0.55,3210.8,3209.4,0.9489]
[1736862054828,0.55,3210.8,3209.5,0.03115104]
[1736862054988,0.55,3210.6,3209.5,0.03115104]
[1736862055173,0.05825591,3210.7,3209.7,0.9489]
[1736862055388,0.0581279,3210.5,3209.8,0.03114813]
[1736862055689,7.61394912,3211.2,3209.8,0.03114759]
[1736862055889,4.49984912,3211.2,3209.2,0.9489]
[1736862056100,4.28232393,3211.3,3209.2,0.9489]
[1736862056101,0.0586395,3211.1,3209.4,0.9489]
[1736862056303,0.0586395,3211.1,3209.6,0.9489]
[1736862056489,0.614954,3211.5,3210.1,0.9489]
[1736862056693,0.8694,3212.2,3210.2,0.98004]
[1736862056889,7.06257912,3212.7,3210.3,0.9489]
[1736862056890,3.0,3212.5,3210.3,0.9489]
[1736862057216,4.4641158,3212.6,3210.6,0.9489]
[1736862057377,0.55,3212.3,3210.7,0.9800329]
[1736862057584,3.05808212,3212.5,3210.7,0.9800329]
[1736862057784,0.05782662,3212.2,3210.7,0.9800329]
[1736862057981,0.05797996,3212.4,3210.7,0.9800329]
[1736862058182,0.0577466,3212.1,3210.7,0.9489]
[1736862058402,0.55,3211.8,3210.7,0.9489]
[1736862058588,0.55,3211.8,3210.8,0.03114075]
[1736862058795,0.55,3212.0,3210.8,0.03114075]
[1736862059000,0.55,3211.6,3210.8,0.03114075]
[1736862059215,0.05748798,3211.9,3210.8,0.03114075]
[1736862059436,0.05718118,3211.5,3210.8,0.03114075]
[1736862059742,0.55,3212.3,3210.8,0.03114075]
[1736862060099,3.55,3212.1,3210.8,0.03114075]
[1736862060337,0.55,3211.7,3210.7,0.9489]
[1736862060647,3.66366,3211.7,3210.7,0.9489]
[1736862060828,3.66366,3211.7,3209.6,0.9489]
[1736862060829,0.55,3211.5,3209.6,0.9489]
[1736862061135,0.05742937,3211.4,3209.9,3.0]
[1736862061338,0.55,3211.3,3210.1,0.9489]
[1736862061518,0.55,3211.3,3210.2,0.03114205]
[1736862061714,0.55,3211.1,3210.1,0.9489]
[1736862062024,0.05687302,3211.0,3210.3,0.9489]
[1736862062229,0.05687302,3211.0,3210.5,0.9489]
[1736862062537,3.55,3211.8,3210.5,0.9489]
[1736862062905,0.55,3211.6,3210.5,0.9489]
[1736862063236,4.438,3210.9,3209.7,0.9489]
[1736862063439,0.55,3210.7,3209.7,0.9489]
[1736862063841,0.55,3210.5,3209.7,0.9489]
[1736862064140,0.05631594,3210.4,3209.7,0.9489]
[1736862064517,0.55,3211.0,3209.7,0.9489]
[1736862064721,3.55,3210.8,3209.7,0.9489]
[1736862064933,0.55,3210.6,3209.7,0.9489]
[1736862065106,0.55,3210.4,3209.7,0.9489]
[1736862065306,0.55,3210.2,3209.7,0.9489]
[1736862065512,0.55,3210.0,3209.3,0.9489]
[1736862065809,0.55,3209.8,3209.3,0.9489]
[1736862066209,0.05534765,3209.7,3209.3,0.9489]
[1736862066538,1.438,3209.8,3208.7,0.1686541]
[1736862066866,0.05515025,3209.6,3208.8,0.98005995]
[1736862067066,0.05502163,3209.7,3208.8,0.98005995]
[1736862067224,5.50428812,3210.7,3208.8,0.98005995]
[1736862067225,0.05482745,3209.5,3208.8,0.98005995]
[1736862067429,4.83784912,3211.2,3209.1,0.9489]
[1736862067643,4.83784912,3211.2,3209.3,0.9489]
[1736862067840,0.0535475,3211.1,3209.5,0.9489]
[1736862068052,0.0535475,3211.1,3209.7,0.9489]
[1736862068218,0.0535475,3211.1,3209.4,3.0]
[1736862068219,0.0535475,3211.1,3209.9,0.9489]
[1736862068552,0.05040336,3211.0,3210.0,0.03114422]
[1736862068740,0.05040336,3211.0,3209.9,0.9489]
[1736862068924,0.55,3211.0,3209.9,0.9489]
[1736862069126,0.41691681,3210.9,3209.9,0.9489]
[1736862069339,0.55,3210.7,3209.9,0.9489]
[1736862069740,3.11487,3210.4,3209.3,0.9489]
[1736862069911,0.55,3210.3,3209.3,0.9489]
[1736862070117,0.04961173,3210.2,3209.3,0.9489]
[1736862070533,0.55,3210.1,3209.3,0.9489]
[1736862070942,0.55,3209.9,3208.8,0.9489]
[1736862071129,0.35996244,3209.8,3208.8,0.9489]
[1736862071444,0.55,3209.7,3208.8,0.9489]
[1736862071620,0.55,3209.7,3208.7,0.1686541]
[1736862071814,0.04909855,3209.6,3208.8,0.98006147]
[1736862072251,3.55,3210.1,3208.8,0.9489]
[1736862072449,0.55,3209.9,3208.8,0.9489]
[1736862072844,0.0490818,3209.8,3208.8,0.9489]
[1736862073054,0.55,3209.7,3208.8,0.9489]
[1736862073253,1.438,3209.7,3208.8,0.9489]
[1736862073555,0.04918354,3209.6,3208.8,0.9489]
[1736862073730,0.50944689,3209.6,3208.8,0.9489]
[1736862073915,0.04918354,3209.6,3208.9,0.03116368]
[1736862074117,0.15512135,3210.3,3208.9,0.03116368]
[1736862074456,3.0,3210.1,3208.8,0.9489]
[1736862074617,0.55,3209.8,3208.8,0.9489]
[1736862074818,0.355,3209.7,3208.8,0.9489]
[1736862075064,0.40306325,3209.7,3208.8,0.9489]
[1736862076157,4.4408,3209.6,3208.7,0.1686541]
[1736862076351,3.55,3209.2,3208.7,0.1686541]
[1736862076553,0.55,3209.0,3208.7,0.1686541]
[1736862076753,0.366613,3208.9,3208.7,0.1686541]
[1736862077055,0.41483169,3208.9,3208.7,0.1686541]
[1736862079342,0.04815717,3208.8,3208.7,0.1686541]
[1736862079548,3.0,3209.1,3208.7,0.1686541]
[1736862079720,0.04714168,3208.8,3208.7,0.1686541]
[1736862079916,4.88734912,3209.3,3208.7,0.1686541]
[1736862079917,0.62131155,3209.5,3208.7,0.1686541]
[1736862080117,4.10497047,3210.3,3208.8,0.03116361]
[1736862080118,0.04499242,3209.4,3208.8,0.03116361]
[1736862080323,0.9375,3210.3,3208.9,0.92925866]
[1736862080745,0.9375,3210.3,3208.9,0.8981]
[1736862080746,0.03788014,3210.2,3208.9,0.8981]
[1736862080923,0.44691015,3210.2,3209.0,0.03115804]
[1736862081123,0.03788014,3210.2,3209.0,0.03115804]
[1736862082360,0.03788014,3210.2,3208.9,0.8981]
[1736862082361,0.03785445,3210.1,3208.9,0.8981]
[1736862082955,3.27429762,3210.5,3209.0,0.03115748]
[1736862082956,0.03820944,3210.0,3209.0,0.03115748]
[1736862083127,0.03820944,3210.0,3208.9,0.8981]
[1736862083321,1.55356578,3210.8,3209.0,0.03115757]
[1736862083556,0.03814093,3210.7,3209.2,0.55]
[1736862083731,0.03814093,3210.7,3209.4,0.8981]
[1736862083931,0.03814093,3210.7,3209.5,0.03115008]
[1736862084161,0.15489073,3211.0,3209.4,0.8981]
[1736862084465,0.03868202,3210.6,3209.5,0.03115043]
[1736862084623,0.6168322,3211.0,3209.5,0.03115043]
[1736862084824,0.03860519,3210.5,3209.5,0.03115043]
[1736862085043,0.03860519,3210.5,3209.4,0.8981]
[1736862085044,3.11439,3210.9,3209.4,0.92925008]
[1736862085249,0.03852836,3210.4,3209.4,0.8981]
[1736862085443,3.11439,3210.9,3209.4,0.8981]
[1736862085690,0.03845153,3210.3,3209.4,0.8981]
[1736862085858,0.9375,3210.4,3209.4,0.8981]
[1736862086025,0.03840027,3210.2,3209.4,0.8981]
[1736862086228,0.0389973,3210.3,3209.5,0.03115737]
[1736862086455,0.03840017,3210.1,3209.4,0.8981]
[1736862086755,3.11473,3210.6,3209.4,0.8981]
[1736862086756,0.03904435,3210.0,3209.4,0.8981]
[1736862086962,0.03904435,3210.0,3209.5,0.03115582]
[1736862087121,3.11409,3211.3,3209.6,0.8981]
[1736862087456,3.66288659,3211.2,3209.6,0.8981]
[1736862087629,3.0,3211.0,3209.6,0.8981]
[1736862087831,3.0,3211.0,3209.7,0.03114921]
[1736862088060,0.6516234,3210.9,3209.7,0.03114921]
[1736862088633,0.6516234,3210.9,3209.6,0.8981]
[1736862089238,3.11448,3210.8,3209.6,0.8981]
[1736862089559,0.0402156,3210.7,3209.6,0.8981]
[1736862089771,0.0402156,3210.7,3209.7,0.03115184]
[1736862089977,0.0402156,3210.7,3209.8,0.9107]
[1736862090260,0.0402156,3210.7,3209.9,0.03114651]
[1736862090561,0.9375,3211.5,3209.9,0.58114651]
[1736862090766,2.14478,3212.3,3210.4,0.55]
[1736862090970,0.0406923,3211.4,3210.7,0.9107]
[1736862091269,0.61107919,3212.5,3210.4,3.0]
[1736862091270,0.61107919,3212.5,3210.9,0.9107]
[1736862091581,0.03962861,3212.4,3211.2,0.55]
[1736862091868,0.03962861,3212.4,3211.5,0.9107]
[1736862092063,0.63480073,3213.1,3211.5,0.9107]
[1736862092272,0.8966,3213.2,3211.6,0.55]
[1736862092433,0.03866709,3213.0,3211.7,0.9107]
[1736862092629,0.03876932,3213.1,3211.7,0.9107]
[1736862092831,0.03876932,3213.1,3211.1,0.03112779]
[1736862092832,0.03864147,3212.9,3211.9,0.9107]
[1736862093185,0.03856477,3212.8,3211.9,0.9107]
[1736862093530,0.62687274,3213.3,3211.9,0.9107]
[1736862093836,0.03889871,3213.2,3212.1,0.9107]
[1736862094046,0.03889871,3213.2,3212.2,0.0311242]
[1736862094374,0.63610698,3213.5,3212.2,0.0311242]
[1736862094755,0.04143347,3213.4,3212.2,0.0311242]
[1736862095068,0.04143347,3213.4,3212.1,0.9107]
[1736862095235,0.04143347,3213.4,3212.2,0.03112614]
[1736862095435,0.04143347,3213.4,3212.2,0.03112431]
[1736862095762,0.04143347,3213.4,3212.3,0.9107]
[1736862095929,0.04143347,3213.4,3212.4,0.03112428]
[1736862096347,0.8966,3214.1,3212.5,0.9107]
[1736862096536,0.04150606,3213.3,3212.6,0.0311212]
[1736862096738,0.62818372,3214.1,3212.7,0.03111976]
[1736862096941,0.04160097,3214.0,3212.7,0.03111976]
[1736862097146,0.04160097,3214.0,3212.5,0.9107]
[1736862097370,0.36697847,3213.9,3212.5,0.9107]
[1736862097565,0.04160097,3214.0,3212.7,0.9107]
[1736862097764,0.04147317,3213.8,3213.0,0.55]
[1736862097973,0.04162645,3213.9,3213.1,0.9107]
[1736862098283,3.11071,3214.7,3213.1,0.9107]
[1736862098464,0.61152615,3214.5,3213.1,0.9107]
[1736862098870,0.04211184,3214.4,3213.1,0.9107]
[1736862099257,0.04211184,3214.4,3213.2,0.03111414]
[1736862099978,0.04211184,3214.4,3213.2,0.55]
[1736862100278,0.04211184,3214.4,3213.4,0.9107]
[1736862100850,0.04211184,3214.4,3213.5,0.0311128]
[1736862101166,0.04211184,3214.4,3213.5,0.03111277]
[1736862101571,0.04211184,3214.4,3213.6,0.9107]
[1736862101750,2.71801943,3215.0,3213.6,0.9107]
[1736862101948,0.04052479,3214.3,3213.6,0.9107]
[1736862102172,2.71801943,3215.0,3213.6,0.9107]
[1736862102372,0.04044816,3214.2,3213.8,0.9107]
[1736862102577,2.71801943,3215.0,3213.9,0.03110756]
[1736862102777,0.61427296,3215.3,3213.9,0.03110756]
[1736862102950,0.04098449,3214.9,3213.8,0.9107]
[1736862103154,0.61427296,3215.3,3213.8,0.9107]
[1736862103368,0.04138994,3214.8,3213.8,0.9107]
[1736862103588,3.72446296,3215.3,3213.9,0.0311099]
[1736862103753,0.04131334,3214.7,3213.8,0.9107]
[1736862103953,3.0,3215.0,3213.8,0.9107]
[1736862104181,0.04123674,3214.6,3213.8,0.9107]
[1736862104376,3.0,3215.0,3213.8,0.9107]
[1736862104569,0.03967596,3214.5,3213.8,0.9107]
[1736862104772,0.3724463,3215.2,3213.9,0.03110992]
[1736862105083,3.8966,3215.5,3213.9,0.03110992]
[1736862105255,0.03852107,3215.1,3213.9,0.03110992]
[1736862105454,3.26655956,3215.4,3213.9,0.03110992]
[1736862105699,0.03844448,3215.0,3213.9,0.03110992]
[1736862105886,0.62056968,3215.5,3214.0,0.875]
[1736862106183,3.0,3215.4,3214.0,0.875]
[1736862106495,3.11012,3215.3,3214.0,0.875]
[1736862106795,0.03904474,3215.3,3214.1,0.03110749]
[1736862107398,3.11022,3215.2,3214.1,0.03110749]
[1736862107956,0.03906577,3215.1,3214.1,0.03110749]
[1736862108155,0.03906577,3215.1,3214.0,0.875]
[1736862108461,0.03906577,3215.1,3214.1,0.03110759]
[1736862108688,0.03906577,3215.1,3214.0,0.875]
[1736862108865,0.03906577,3215.1,3214.1,0.03110759]
[1736862109580,0.03906577,3215.1,3214.2,0.9052]
[1736862109787,0.1577576,3216.1,3214.4,0.9052]
[1736862109989,4.01973,3216.3,3214.6,0.9052]
[1736862110161,3.04009972,3216.0,3214.7,0.0311014]
[1736862110357,3.0,3216.0,3214.8,0.9052]
[1736862110590,3.0,3216.0,3214.9,0.03109981]
[1736862110775,3.7605264,3215.9,3214.8,0.9052]
[1736862111417,0.0400514,3215.9,3214.9,0.03110139]
[1736862111912,0.0400514,3215.9,3215.2,3.94984912]
[1736862112108,0.0400514,3215.9,3215.3,0.9362918]
[1736862112266,3.26203614,3217.2,3215.3,0.9362918]
[1736862112470,3.10833,3217.2,3215.3,0.9362918]
[1736862112711,0.44041435,3217.1,3215.4,0.9052]
[1736862112924,0.6160712,3216.8,3215.6,0.9052]
[1736862113271,0.44041435,3217.1,3214.9,3.0]
[1736862113272,0.0385853,3216.7,3215.8,0.9052]
[1736862113466,3.10833,3217.2,3215.9,0.03108815]
[1736862113667,3.72352858,3217.2,3215.9,0.03108815]
[1736862113868,0.04059778,3217.1,3215.9,0.03108815]
[1736862114073,0.04059778,3217.1,3216.0,0.9052]
[1736862114367,0.60579636,3217.2,3216.1,0.03108765]
[1736862114718,3.0,3217.7,3216.2,0.9052]
[1736862114918,3.1079,3217.6,3216.2,0.9052]
[1736862115126,3.1079,3217.6,3216.3,0.03108526]
[1736862115127,3.76908859,3217.6,3216.3,0.03108526]
[1736862115275,3.14752659,3217.6,3216.3,0.03108526]
[1736862115910,3.77340676,3217.6,3216.3,0.03108527]
[1736862116834,3.10824,3217.3,3216.4,0.9052]
[1736862117222,3.10838,3217.1,3216.4,0.9052]
[1736862117531,0.03766266,3217.2,3216.4,0.9052]
[1736862117532,0.0375097,3217.0,3216.4,0.9052]
[1736862117876,3.0,3217.5,3216.4,0.9052]
[1736862118036,0.0375814,3216.9,3216.4,0.9052]
[1736862118233,3.73378017,3217.6,3216.4,0.9052]
[1736862118473,0.03747692,3216.8,3216.4,0.9052]
[1736862118767,3.73378017,3217.6,3216.4,0.9052]
[1736862118768,0.03746416,3216.7,3216.5,0.03108522]
[1736862118933,0.03746416,3216.7,3216.4,0.9052]
[1736862119134,3.0,3217.5,3216.4,0.9052]
[1736862119339,0.03783093,3217.4,3216.5,0.03108337]
[1736862119521,3.10771,3217.9,3216.5,0.03108337]
[1736862119718,0.65280042,3217.8,3216.6,0.9052]
[1736862120022,3.76056042,3217.8,3216.6,0.9052]
[1736862120561,3.76056042,3217.8,3216.7,0.03108329]
[1736862120735,3.76056042,3217.8,3216.6,0.9052]
[1736862120938,3.10805,3217.5,3216.6,0.9052]
[1736862121123,3.10833,3217.2,3216.6,0.9052]
[1736862121325,0.03835799,3217.1,3216.6,0.9052]
[1736862122187,3.10805,3217.5,3216.6,0.9052]
[1736862122331,3.10819,3217.3,3216.6,0.9052]
[1736862122680,3.0,3217.0,3215.4,0.9358]
[1736862122879,3.10878,3216.7,3215.4,0.9358]
[1736862123414,3.10896,3216.5,3215.4,0.9358]